[Event "WYCC U14 Open 2019"]
[Site "Mumbai"]
[Date "2019.10.03"]
[Round "2.1"]
[White "Jun, Rudolf Jr."]
[Black "Sreeshwan Maralakshikari"]
[Result "0-1"]
[ECO "B13"]
[WhiteElo "2105"]
[BlackElo "2449"]
[Annotator "NA"]
[PlyCount "93"]
[EventDate "2019.10.02"]
[EventType "swiss"]
[EventCountry "IND"]
[SourceTitle "playchess.com"]
[Source "ChessBase"]
[SourceQuality "1"]
[TimeControl "40/5400+30:1800+30"]

1. e4 {[%emt 0:00:00]} c6 {[%emt 0:00:00]} 2. d4 {[%emt 0:05:16]} d5 {[%emt 0:00:00]} 3. exd5 {[%emt 0:04:31]} cxd5 {[%emt 0:00:11]} 4. h3 {[%emt 0:01:29]} Nc6 {[%emt 0:00:16]} 5. Nf3 {[%emt 0:00:08]} Nf6 {[%emt 0:00:25]} 6. Bd3 {[%emt 0:01:41]} Qc7 {[%emt 0:00:13]} 7. c3 {[%emt 0:02:41]} g6 {[%emt 0:00:05]} 8. b4 {[%emt 0:05:20]} Bf5 {[%emt 0:00:34]} 9. O-O {[%emt 0:02:36]} Bg7 {[%emt 0:00:25]} 10. Qe2 {[%emt 0:07:39]} O-O {[%emt 0:00:36]} 11. Re1 {[%emt 0:07:50]} a6 {[%emt 0:15:31]} 12. Bxf5 {[%emt 0:12:38]} gxf5 {[%emt 0:00:06]} 13. Ne5 {[%emt 0:00:24]} Ne4 {[%emt 0:22:36]} 14. Nxc6 {[%emt 0:03:50]} Qxc6 {[%emt 0:00:05]} 15. Bd2 {[%emt 0:00:11]} e6 {[%emt 0:07:07]} 16. f3 {[%emt 0:00:26]} Nd6 {[%emt 0:00:14]} 17. a4 {[%emt 0:03:14]} Rae8 {[%emt 0:06:44]} 18. Bf4 {[%emt 0:03:11]} f6 {[%emt 0:01:10]} 19. Bxd6 {[%emt 0:00:28]} Qxd6 {[%emt 0:00:04]} 20. Nd2 {[%emt 0:03:02]} e5 {[%emt 0:00:05]} 21. Qf2 {[%emt 0:00:20]} Bh6 {[%emt 0:00:57]} 22. Nf1 {[%emt 0:01:09]} Qe6 {[%emt 0:19:31]} 23. b5 {[%emt 0:13:29]} a5 {[%emt 0:02:07]} 24. Ra2 {[%emt 0:01:19]} Rc8 {[%emt 0:02:35]} 25. f4 {[%emt 0:02:18]} Rxc3 {[%emt 0:03:54]} 26. dxe5 {[%emt 0:00:34]} Rc4 {[%emt 0:00:45]} 27. g3 {[%emt 0:00:09]} Re4 {[%emt 0:00:05]} 28. Rxe4 fxe4 {[%emt 0:00:05]} 29. exf6 {[%emt 0:03:02]} d4 {[%emt 0:01:03]} 30. Re2 {[%emt 0:01:32]} e3 {[%emt 0:01:02]} 31. Qf3 {[%emt 0:01:04]} Rxf6 {[%emt 0:00:29]} 32. Qxb7 {[%emt 0:00:29]} Bf8 {[%emt 0:00:04]} 33. Qf3 {[%emt 0:01:05]} Bc5 {[%emt 0:01:37]} 34. Kg2 {[%emt 0:00:16]} Qc4 {[%emt 0:07:04]} 35. Qa8+ {[%emt 0:03:02]} Rf8 {[%emt 0:02:10]} 36. Qf3 {[%emt 0:00:05]} Re8 {[%emt 0:00:19]} 37. Qh5 {[%emt 0:01:48]} Re6 {[%emt 0:03:34]} 38. Qg5+ {[%emt 0:00:58]} Rg6 {[%emt 0:00:45]} 39. Qd8+ {[%emt 0:00:09]} Kg7 {[%emt 0:00:43]} 40. Qd7+ {[%emt 0:00:15]} Kh6 {[%emt 0:01:16]} 41. Kf3 {[%emt 0:31:29]} Qc1 {[%emt 0:08:09]} 42. Nxe3 {[%emt 0:00:00]} dxe3 {[%emt 0:04:52]} 43. g4 {[%emt 0:00:00]} Qf1+ {[%emt 0:06:48]} 44. Ke4 {[%emt 0:00:00]} Qh1+ {[%emt 0:00:25]} 45. Kf5 {[%emt 0:00:00]} Qb1+ {[%emt 0:00:07]} 46. Ke5 {[%emt 0:00:00]} Bd6+ {[%emt 0:00:07]} 47. Kd4 0-1

[Event "WYCC U14 Open 2019"]
[Site "Mumbai"]
[Date "2019.10.03"]
[Round "2.2"]
[White "Murzin, Volodar"]
[Black "Andrijashkin, Deniss"]
[Result "1-0"]
[ECO "B40"]
[WhiteElo "2433"]
[BlackElo "2106"]
[Annotator "NA"]
[PlyCount "59"]
[EventDate "2019.10.02"]
[EventType "swiss"]
[EventCountry "IND"]
[SourceTitle "playchess.com"]
[Source "ChessBase"]
[SourceQuality "1"]
[TimeControl "40/5400+30:1800+30"]

1. e4 {[%emt 0:00:00]} c5 {[%emt 0:00:00]} 2. Nf3 {[%emt 0:00:00]} e6 {[%emt 0:00:04]} 3. d3 {[%emt 0:02:54]} Nc6 {[%emt 0:01:38]} 4. g3 {[%emt 0:00:17]} d5 {[%emt 0:01:21]} 5. Nbd2 {[%emt 0:00:07]} Nge7 {[%emt 0:05:49]} 6. Bg2 {[%emt 0:00:12]} g6 {[%emt 0:00:05]} 7. O-O {[%emt 0:00:05]} Bg7 {[%emt 0:00:06]} 8. Re1 {[%emt 0:00:37]} O-O {[%emt 0:02:13]} 9. e5 {[%emt 0:03:19]} Qc7 {[%emt 0:07:08]} 10. Qe2 {[%emt 0:00:18]} b5 {[%emt 0:17:55]} 11. Nf1 {[%emt 0:01:04]} Bb7 {[%emt 0:01:34]} 12. h4 {[%emt 0:00:10]} Rfc8 {[%emt 0:00:19]} 13. Bf4 {[%emt 0:01:38]} Qd8 {[%emt 0:01:19]} 14. N1h2 {[%emt 0:00:41]} a5 {[%emt 0:03:58]} 15. Ng4 {[%emt 0:06:37]} Nf5 {[%emt 0:00:25]} 16. Bg5 {[%emt 0:01:53]} Qc7 {[%emt 0:05:48]} 17. Qd2 {[%emt 0:06:05]} b4 {[%emt 0:07:58]} 18. Nf6+ {[%emt 0:08:53]} Kh8 {[%emt 0:01:43]} 19. g4 {[%emt 0:00:31]} Nfd4 {[%emt 0:00:30]} 20. Nxd4 {[%emt 0:00:38]} Nxd4 {[%emt 0:03:49]} 21. c3 {[%emt 0:07:51]} Nc6 {[%emt 0:02:42]} 22. Qf4 {[%emt 0:00:28]} Ne7 {[%emt 0:07:48]} 23. h5 {[%emt 0:03:58]} Ng8 {[%emt 0:03:13]} 24. Re3 {[%emt 0:08:11]} h6 {[%emt 0:04:28]} 25. Rh3 {[%emt 0:03:29]} Nxf6 {[%emt 0:02:38]} 26. exf6 {[%emt 0:01:49]} hxg5 {[%emt 0:01:54]} 27. hxg6+ {[%emt 0:02:24]} Kg8 {[%emt 0:00:08]} 28. Qxg5 {[%emt 0:00:05]} fxg6 {[%emt 0:02:24]} 29. Qxg6 {[%emt 0:00:05]} Qf7 {[%emt 0:00:13]} 30. Rh8+ {[%emt 0:00:17]} 1-0

[Event "WYCC U14 Open 2019"]
[Site "Mumbai"]
[Date "2019.10.03"]
[Round "2.3"]
[White "Madaminov, Mukhiddin"]
[Black "Suleymanli, Aydin"]
[Result "0-1"]
[ECO "A45"]
[WhiteElo "2045"]
[BlackElo "2426"]
[Annotator "NA"]
[PlyCount "102"]
[EventDate "2019.10.02"]
[EventType "swiss"]
[EventCountry "IND"]
[SourceTitle "playchess.com"]
[Source "ChessBase"]
[SourceQuality "1"]
[TimeControl "40/5400+30:1800+30"]

1. d4 {[%emt 0:00:00]} Nf6 {[%emt 0:00:00]} 2. Nc3 {[%emt 0:00:35]} d5 {[%emt 0:00:00]} 3. Bf4 {[%emt 0:01:00]} e6 {[%emt 0:00:21]} 4. Nb5 {[%emt 0:00:40]} Na6 {[%emt 0:01:45]} 5. e3 {[%emt 0:01:00]} Bb4+ {[%emt 0:03:42]} 6. c3 {[%emt 0:02:10]} Be7 {[%emt 0:00:25]} 7. Na3 {[%emt 0:02:30]} O-O {[%emt 0:03:11]} 8. Nc2 {[%emt 0:01:50]} c5 {[%emt 0:00:36]} 9. Bxa6 {[%emt 0:02:00]} bxa6 10. Nf3 {[%emt 0:00:30]} a5 {[%emt 0:00:26]} 11. O-O {[%emt 0:00:46]} Ba6 {[%emt 0:00:04]} 12. Re1 {[%emt 0:00:44]} Qb6 {[%emt 0:02:29]} 13. Rb1 {[%emt 0:01:40]} Ne4 {[%emt 0:03:36]} 14. Ne5 {[%emt 0:04:20]} Rfd8 {[%emt 0:03:41]} 15. f3 {[%emt 0:05:50]} Nd6 {[%emt 0:03:15]} 16. Nd3 {[%emt 0:08:40]} Nb7 {[%emt 0:04:53]} 17. Qd2 {[%emt 0:06:51]} Rac8 {[%emt 0:00:54]} 18. Bg3 {[%emt 0:09:09]} a4 {[%emt 0:18:52]} 19. Bf2 {[%emt 0:07:30]} cxd4 {[%emt 0:00:35]} 20. exd4 {[%emt 0:00:30]} Qa5 {[%emt 0:03:32]} 21. Ne3 {[%emt 0:07:10]} Bxd3 {[%emt 0:02:02]} 22. Qxd3 {[%emt 0:00:11]} Nd6 {[%emt 0:00:46]} 23. a3 {[%emt 0:09:09]} Rb8 {[%emt 0:01:01]} 24. Bg3 {[%emt 0:02:10]} Rb3 {[%emt 0:00:51]} 25. Bxd6 {[%emt 0:02:50]} Bxd6 {[%emt 0:06:14]} 26. Nc2 {[%emt 0:02:40]} Rdb8 {[%emt 0:00:12]} 27. Nb4 {[%emt 0:00:20]} Qb6 {[%emt 0:01:18]} 28. Qc2 {[%emt 0:04:20]} a5 {[%emt 0:00:05]} 29. Nd3 {[%emt 0:00:25]} Bxa3 {[%emt 0:00:13]} 30. Ra1 {[%emt 0:00:15]} Bxb2 {[%emt 0:00:07]} 31. Nxb2 {[%emt 0:00:10]} Rxb2 {[%emt 0:00:11]} 32. Qxa4 {[%emt 0:00:10]} Qd8 {[%emt 0:01:26]} 33. Ra2 {[%emt 0:03:25]} h6 {[%emt 0:01:06]} 34. Kh1 {[%emt 0:02:35]} Qc7 {[%emt 0:03:25]} 35. Rxb2 {[%emt 0:07:29]} Rxb2 {[%emt 0:00:05]} 36. Rg1 {[%emt 0:00:18]} Kh7 {[%emt 0:00:12]} 37. h3 {[%emt 0:03:05]} Qxc3 {[%emt 0:00:13]} 38. Qd7 {[%emt 0:00:08]} Kg6 {[%emt 0:00:18]} 39. Qa7 {[%emt 0:00:53]} Rd2 {[%emt 0:00:18]} 40. f4 {[%emt 0:03:29]} Rxd4 {[%emt 0:01:21]} 41. Rf1 {[%emt 0:30:19]} Rxf4 {[%emt 0:30:30]} 42. Rxf4 {[%emt 0:00:43]} Qc1+ {[%emt 0:00:08]} 43. Kh2 {[%emt 0:00:26]} Qxf4+ {[%emt 0:00:09]} 44. g3 {[%emt 0:00:05]} Qd2+ {[%emt 0:00:05]} 45. Kh1 {[%emt 0:00:09]} d4 {[%emt 0:00:01]} 46. h4 {[%emt 0:00:09]} Qd1+ {[%emt 0:00:09]} 47. Kg2 {[%emt 0:00:14]} Qe2+ {[%emt 0:00:03]} 48. Kh3 {[%emt 0:00:14]} d3 {[%emt 0:00:21]} 49. Qxa5 {[%emt 0:02:13]} Qf1+ {[%emt 0:00:15]} 50. Kh2 {[%emt 0:00:08]} Qf2+ {[%emt 0:00:03]} 51. Kh1 {[%emt 0:00:34]} d2 {[%emt 0:00:10]} 0-1

[Event "WYCC U14 Open 2019"]
[Site "Mumbai"]
[Date "2019.10.03"]
[Round "2.4"]
[White "Laux, Dominik"]
[Black "Pranav Anand"]
[Result "1/2-1/2"]
[ECO "D70"]
[WhiteElo "2015"]
[BlackElo "2351"]
[Annotator "NA"]
[PlyCount "97"]
[EventDate "2019.10.02"]
[EventType "swiss"]
[EventCountry "IND"]
[SourceTitle "playchess.com"]
[Source "ChessBase"]
[SourceQuality "1"]
[TimeControl "40/5400+30:1800+30"]

1. d4 {[%emt 0:00:00]} Nf6 {[%emt 0:00:00]} 2. c4 {[%emt 0:00:22]} g6 {[%emt 0:02:41]} 3. Nf3 {[%emt 0:01:43]} Bg7 {[%emt 0:00:06]} 4. g3 {[%emt 0:01:06]} O-O {[%emt 0:00:09]} 5. Bg2 {[%emt 0:00:17]} c6 {[%emt 0:00:27]} 6. Nc3 {[%emt 0:02:24]} d5 {[%emt 0:00:11]} 7. O-O {[%emt 0:04:09]} dxc4 {[%emt 0:00:13]} 8. Ne5 {[%emt 0:11:32]} Nfd7 {[%emt 0:10:29]} 9. Nxc4 {[%emt 0:03:25]} Nb6 {[%emt 0:02:06]} 10. Nxb6 {[%emt 0:06:59]} axb6 {[%emt 0:02:05]} 11. d5 {[%emt 0:03:55]} Bf5 {[%emt 0:22:34]} 12. Be3 {[%emt 0:11:35]} Ra6 {[%emt 0:01:43]} 13. Qb3 {[%emt 0:02:06]} c5 {[%emt 0:17:52]} 14. Bf4 {[%emt 0:04:53]} Bd7 {[%emt 0:08:26]} 15. Rfd1 {[%emt 0:07:14]} Qc8 {[%emt 0:01:15]} 16. e4 {[%emt 0:05:24]} c4 {[%emt 0:11:39]} 17. Qb4 {[%emt 0:06:26]} Qc5 {[%emt 0:00:04]} 18. Qxc5 {[%emt 0:02:19]} bxc5 {[%emt 0:00:01]} 19. Be3 {[%emt 0:01:17]} Rc8 {[%emt 0:00:25]} 20. f4 {[%emt 0:01:27]} f6 {[%emt 0:04:24]} 21. a4 {[%emt 0:04:35]} Rb6 {[%emt 0:01:19]} 22. Rd2 {[%emt 0:01:49]} Na6 {[%emt 0:01:52]} 23. Bf1 {[%emt 0:01:24]} Rb4 {[%emt 0:00:33]} 24. Rc2 {[%emt 0:02:22]} b6 {[%emt 0:04:39]} 25. Bd2 {[%emt 0:02:52]} e6 {[%emt 0:03:16]} 26. dxe6 {[%emt 0:04:26]} Bxe6 {[%emt 0:00:06]} 27. Nd5 {[%emt 0:00:55]} Bxd5 {[%emt 0:02:24]} 28. exd5 {[%emt 0:00:25]} f5 {[%emt 0:01:18]} 29. Bxb4 {[%emt 0:04:17]} Nxb4 {[%emt 0:00:05]} 30. Rxc4 {[%emt 0:00:29]} Nxd5 {[%emt 0:00:15]} 31. Rb1 {[%emt 0:01:58]} Nb4 {[%emt 0:02:08]} 32. b3 {[%emt 0:01:14]} Rd8 {[%emt 0:00:13]} 33. Re1 {[%emt 0:00:29]} Rd2 {[%emt 0:00:57]} 34. Re6 {[%emt 0:00:37]} Bd4+ {[%emt 0:00:14]} 35. Kh1 {[%emt 0:00:19]} Rd1 {[%emt 0:00:47]} 36. Kg2 {[%emt 0:00:13]} Nd5 {[%emt 0:00:09]} 37. Rxd4 {[%emt 0:00:54]} Rxd4 {[%emt 0:00:34]} 38. Bc4 {[%emt 0:00:25]} Kg7 {[%emt 0:00:44]} 39. Bxd5 {[%emt 0:00:29]} Rxd5 {[%emt 0:00:01]} 40. Rxb6 {[%emt 0:00:38]} Rd2+ {[%emt 0:00:03]} 41. Kh3 {[%emt 0:00:38]} Ra2 {[%emt 0:06:02]} 42. Rb7+ {[%emt 0:05:15]} Kh6 {[%emt 0:00:20]} 43. Rb5 {[%emt 0:00:58]} c4 {[%emt 0:00:42]} 44. bxc4 {[%emt 0:00:59]} Rxa4 {[%emt 0:00:06]} 45. Rc5 {[%emt 0:00:47]} Ra2 {[%emt 0:04:51]} 46. Rc7 {[%emt 0:00:44]} Rc2 {[%emt 0:00:14]} 47. c5 {[%emt 0:01:32]} Rc3 {[%emt 0:01:14]} 48. c6 {[%emt 0:03:47]} Rc2 {[%emt 0:00:22]} 49. Rc8 {[%emt 0:02:55]} 1/2-1/2

[Event "WYCC U14 Open 2019"]
[Site "Mumbai"]
[Date "2019.10.03"]
[Round "2.5"]
[White "Samant Aditya S"]
[Black "Bochnicka, Vladimir"]
[Result "1/2-1/2"]
[ECO "B90"]
[WhiteElo "2334"]
[BlackElo "2087"]
[Annotator "NA"]
[PlyCount "85"]
[EventDate "2019.10.02"]
[EventType "swiss"]
[EventCountry "IND"]
[SourceTitle "playchess.com"]
[Source "ChessBase"]
[SourceQuality "1"]
[TimeControl "40/5400+30:1800+30"]

1. e4 {[%emt 0:00:00]} c5 {[%emt 0:00:00]} 2. Nf3 {[%emt 0:00:00]} d6 {[%emt 0:00:00]} 3. d4 {[%emt 0:00:00]} cxd4 {[%emt 0:00:00]} 4. Nxd4 {[%emt 0:00:00]} Nf6 {[%emt 0:00:02]} 5. Nc3 {[%emt 0:00:00]} a6 {[%emt 0:00:07]} 6. Be3 {[%emt 0:00:48]} e5 {[%emt 0:01:10]} 7. Nf3 {[%emt 0:00:08]} Be7 {[%emt 0:00:16]} 8. Bc4 {[%emt 0:00:08]} O-O {[%emt 0:00:34]} 9. O-O {[%emt 0:00:11]} Be6 {[%emt 0:11:59]} 10. Bxe6 {[%emt 0:00:20]} fxe6 {[%emt 0:00:07]} 11. Na4 {[%emt 0:00:10]} Ng4 {[%emt 0:13:26]} 12. Qd3 {[%emt 0:00:09]} Nxe3 {[%emt 0:00:43]} 13. Qxe3 {[%emt 0:00:07]} b5 {[%emt 0:05:23]} 14. Nb6 {[%emt 0:00:10]} Ra7 {[%emt 0:00:12]} 15. Nd5 {[%emt 0:00:08]} Rd7 {[%emt 0:03:05]} 16. Nxe7+ {[%emt 0:03:17]} Qxe7 {[%emt 0:05:34]} 17. a4 {[%emt 0:00:36]} b4 {[%emt 0:04:52]} 18. Rfd1 {[%emt 0:01:07]} a5 {[%emt 0:05:47]} 19. c3 {[%emt 0:08:50]} Na6 {[%emt 0:10:48]} 20. Qb6 {[%emt 0:05:28]} Nc5 {[%emt 0:03:38]} 21. cxb4 {[%emt 0:05:28]} Rb7 {[%emt 0:01:08]} 22. Qc6 {[%emt 0:04:58]} Rxb4 {[%emt 0:05:56]} 23. Rxd6 {[%emt 0:03:05]} Nxe4 {[%emt 0:02:12]} 24. Rxe6 {[%emt 0:07:47]} Qa7 {[%emt 0:02:15]} 25. Re8 {[%emt 0:00:38]} Qxf2+ {[%emt 0:11:50]} 26. Kh1 {[%emt 0:00:04]} Qc5 {[%emt 0:00:15]} 27. Qe6+ {[%emt 0:01:51]} Kh8 {[%emt 0:01:15]} 28. Rxf8+ {[%emt 0:00:11]} Qxf8 {[%emt 0:00:01]} 29. Rc1 {[%emt 0:01:45]} Rxb2 {[%emt 0:02:36]} 30. Qxe5 {[%emt 0:07:33]} Re2 {[%emt 0:07:35]} 31. Qxa5 {[%emt 0:01:40]} h6 {[%emt 0:01:11]} 32. Qd5 {[%emt 0:06:42]} Nf2+ {[%emt 0:01:30]} 33. Kg1 {[%emt 0:00:17]} Ng4 {[%emt 0:00:07]} 34. Qb5 {[%emt 0:16:51]} Ra2 {[%emt 0:00:46]} 35. Re1 {[%emt 0:01:22]} Nf6 {[%emt 0:00:30]} 36. Ne5 {[%emt 0:16:15]} Qa8 {[%emt 0:00:13]} 37. Ng6+ {[%emt 0:02:43]} Kh7 {[%emt 0:00:07]} 38. Nf4 {[%emt 0:01:26]} Qxa4 {[%emt 0:00:48]} 39. Qb1+ {[%emt 0:02:21]} Kg8 {[%emt 0:00:32]} 40. Qb8+ {[%emt 0:04:37]} Kh7 {[%emt 0:00:14]} 41. Qb1+ {[%emt 0:30:23]} Kg8 {[%emt 0:30:54]} 42. Qb8+ {[%emt 0:00:49]} Kh7 {[%emt 0:00:00]} 43. Qb1+ {[%emt 0:00:00]} 1/2-1/2

[Event "WYCC U14 Open 2019"]
[Site "Mumbai"]
[Date "2019.10.03"]
[Round "2.6"]
[White "Wu, Logan"]
[Black "Petkov, Momchil"]
[Result "1-0"]
[ECO "B33"]
[WhiteElo "1994"]
[BlackElo "2333"]
[Annotator "NA"]
[PlyCount "85"]
[EventDate "2019.10.02"]
[EventType "swiss"]
[EventCountry "IND"]
[SourceTitle "playchess.com"]
[Source "ChessBase"]
[SourceQuality "1"]
[TimeControl "40/5400+30:1800+30"]

1. e4 {[%emt 0:00:00]} c5 {[%emt 0:00:00]} 2. Nf3 {[%emt 0:00:00]} Nc6 {[%emt 0:00:00]} 3. d4 {[%emt 0:00:00]} cxd4 {[%emt 0:00:00]} 4. Nxd4 {[%emt 0:00:00]} Nf6 {[%emt 0:00:11]} 5. Nc3 {[%emt 0:00:00]} e5 {[%emt 0:00:06]} 6. Ndb5 {[%emt 0:00:10]} d6 {[%emt 0:00:10]} 7. Bg5 {[%emt 0:00:13]} a6 {[%emt 0:00:16]} 8. Na3 {[%emt 0:00:06]} b5 {[%emt 0:00:10]} 9. Nd5 {[%emt 0:00:08]} Be7 {[%emt 0:00:10]} 10. Bxf6 {[%emt 0:00:08]} Bxf6 {[%emt 0:00:07]} 11. c4 {[%emt 0:00:10]} b4 {[%emt 0:00:06]} 12. Nc2 {[%emt 0:00:05]} O-O {[%emt 0:00:37]} 13. g3 {[%emt 0:00:56]} Bg5 {[%emt 0:01:16]} 14. h4 {[%emt 0:01:17]} Bh6 {[%emt 0:01:45]} 15. Bg2 {[%emt 0:00:58]} Qa5 {[%emt 0:06:46]} 16. O-O {[%emt 0:03:58]} Qc5 {[%emt 0:00:22]} 17. b3 {[%emt 0:06:08]} a5 {[%emt 0:08:09]} 18. Nde3 {[%emt 0:12:39]} Bxe3 {[%emt 0:05:27]} 19. Nxe3 {[%emt 0:00:36]} Ra7 {[%emt 0:10:08]} 20. Nf5 {[%emt 0:12:08]} Bxf5 {[%emt 0:04:18]} 21. exf5 {[%emt 0:00:08]} Nd4 {[%emt 0:00:27]} 22. Qh5 {[%emt 0:12:25]} f6 {[%emt 0:17:08]} 23. Bd5+ {[%emt 0:02:32]} Kh8 {[%emt 0:02:45]} 24. Rab1 {[%emt 0:09:55]} a4 {[%emt 0:04:07]} 25. bxa4 {[%emt 0:01:49]} Rxa4 {[%emt 0:01:17]} 26. Rb2 {[%emt 0:00:31]} Qc8 {[%emt 0:11:46]} 27. Rfb1 {[%emt 0:05:13]} Nxf5 {[%emt 0:02:15]} 28. Qg4 {[%emt 0:07:42]} g6 {[%emt 0:03:22]} 29. h5 {[%emt 0:05:24]} gxh5 {[%emt 0:09:49]} 30. Qxh5 {[%emt 0:00:34]} Ng7 {[%emt 0:04:07]} 31. Qh6 {[%emt 0:05:35]} Qf5 {[%emt 0:02:11]} 32. Rxb4 {[%emt 0:02:41]} Rxb4 {[%emt 0:05:31]} 33. Rxb4 {[%emt 0:00:05]} Qg4 {[%emt 0:01:02]} 34. Kg2 {[%emt 0:04:13]} e4 {[%emt 0:00:22]} 35. Qxf6 {[%emt 0:00:55]} Qc8 {[%emt 0:00:34]} 36. Qd4 {[%emt 0:01:16]} Qd8 {[%emt 0:00:38]} 37. Rb7 {[%emt 0:01:35]} Qg5 {[%emt 0:00:11]} 38. Bxe4 {[%emt 0:01:10]} Qg4 {[%emt 0:00:47]} 39. a4 {[%emt 0:03:47]} h5 {[%emt 0:00:13]} 40. f3 {[%emt 0:02:11]} Qg5 {[%emt 0:00:10]} 41. Qxd6 {[%emt 0:01:55]} Rg8 {[%emt 0:02:00]} 42. f4 {[%emt 0:00:54]} Rd8 {[%emt 0:00:54]} 43. Rb8 {[%emt 0:00:51]} 1-0

[Event "WYCC U14 Open 2019"]
[Site "Mumbai"]
[Date "2019.10.03"]
[Round "2.7"]
[White "Chyzy, Jakub"]
[Black "Amanzhol, Sultan"]
[Result "1-0"]
[ECO "B53"]
[WhiteElo "2327"]
[BlackElo "2032"]
[Annotator "NA"]
[PlyCount "52"]
[EventDate "2019.10.02"]
[EventType "swiss"]
[EventCountry "IND"]
[SourceTitle "playchess.com"]
[Source "ChessBase"]
[SourceQuality "1"]
[TimeControl "40/5400+30:1800+30"]

1. e4 {[%emt 0:00:00]} c5 {[%emt 0:00:00]} 2. Nf3 {[%emt 0:00:00]} d6 {[%emt 0:00:13]} 3. d4 {[%emt 0:00:00]} cxd4 {[%emt 0:00:36]} 4. Qxd4 {[%emt 0:00:00]} a6 {[%emt 0:00:30]} 5. c4 {[%emt 0:00:18]} Nc6 {[%emt 0:00:58]} 6. Qd3 {[%emt 0:00:00]} g6 {[%emt 0:00:30]} 7. Be2 {[%emt 0:00:18]} Bg7 {[%emt 0:00:16]} 8. h3 {[%emt 0:00:56]} Nf6 {[%emt 0:00:26]} 9. O-O {[%emt 0:00:12]} O-O {[%emt 0:00:59]} 10. Nc3 {[%emt 0:00:08]} Nd7 {[%emt 0:02:43]} 11. b3 {[%emt 0:03:52]} Nc5 {[%emt 0:01:12]} 12. Bb2 {[%emt 0:01:20]} f5 {[%emt 0:01:53]} 13. exf5 {[%emt 0:06:16]} Bxf5 {[%emt 0:06:02]} 14. Rad1 {[%emt 0:06:40]} Qd7 {[%emt 0:05:35]} 15. Rd2 {[%emt 0:10:36]} Rae8 {[%emt 0:06:06]} 16. Rfd1 {[%emt 0:02:12]} Qc8 {[%emt 0:01:10]} 17. Nd5 {[%emt 0:05:15]} e5 {[%emt 0:12:54]} 18. Bf1 {[%emt 0:05:38]} Kh8 {[%emt 0:23:19]} 19. b4 {[%emt 0:05:35]} Ne4 {[%emt 0:05:51]} 20. Re2 {[%emt 0:00:42]} Nf6 {[%emt 0:01:12]} 21. Nxf6 {[%emt 0:04:07]} Rxf6 {[%emt 0:00:09]} 22. c5 {[%emt 0:15:13]} dxc5 {[%emt 0:04:46]} 23. bxc5 {[%emt 0:03:07]} Rfe6 {[%emt 0:00:28]} 24. g4 {[%emt 0:01:58]} Nd4 {[%emt 0:01:27]} 25. gxf5 {[%emt 0:05:15]} Nxe2+ {[%emt 0:00:42]} 26. Bxe2 {[%emt 0:00:25]} gxf5 {[%emt 0:00:11]} 1-0

[Event "WYCC U14 Open 2019"]
[Site "Mumbai"]
[Date "2019.10.03"]
[Round "2.8"]
[White "Sahakyan, Aleks"]
[Black "Borhy, Marcell"]
[Result "1/2-1/2"]
[ECO "B29"]
[WhiteElo "1991"]
[BlackElo "2321"]
[Annotator "NA"]
[PlyCount "91"]
[EventDate "2019.10.02"]
[EventType "swiss"]
[EventCountry "IND"]
[SourceTitle "playchess.com"]
[Source "ChessBase"]
[SourceQuality "1"]
[TimeControl "40/5400+30:1800+30"]

1. e4 {[%emt 0:00:00]} c5 {[%emt 0:00:00]} 2. Nf3 {[%emt 0:00:00]} Nf6 {[%emt 0:00:00]} 3. Nc3 {[%emt 0:00:25]} d5 {[%emt 0:00:45]} 4. exd5 {[%emt 0:05:35]} Nxd5 {[%emt 0:00:08]} 5. Bc4 {[%emt 0:01:15]} Nxc3 {[%emt 0:02:43]} 6. bxc3 {[%emt 0:00:16]} Nc6 {[%emt 0:01:14]} 7. O-O {[%emt 0:00:46]} e6 {[%emt 0:03:45]} 8. d4 {[%emt 0:03:20]} Be7 {[%emt 0:00:52]} 9. Qe2 {[%emt 0:04:32]} O-O {[%emt 0:02:10]} 10. Rd1 {[%emt 0:04:01]} Qa5 {[%emt 0:03:46]} 11. Bd2 {[%emt 0:03:59]} Bd7 {[%emt 0:13:23]} 12. Rab1 {[%emt 0:00:57]} Qc7 {[%emt 0:00:22]} 13. Qe4 {[%emt 0:01:04]} Na5 {[%emt 0:16:26]} 14. Bf4 {[%emt 0:03:34]} Qc6 {[%emt 0:11:45]} 15. d5 {[%emt 0:02:56]} Qa4 {[%emt 0:00:07]} 16. Bd3 {[%emt 0:11:05]} Qxe4 {[%emt 0:07:00]} 17. Bxe4 {[%emt 0:01:55]} exd5 {[%emt 0:14:38]} 18. Bxd5 {[%emt 0:01:52]} Bf5 {[%emt 0:03:36]} 19. Re1 {[%emt 0:04:22]} Bf6 {[%emt 0:01:15]} 20. Bc7 {[%emt 0:01:47]} Bxc3 {[%emt 0:01:28]} 21. Re3 {[%emt 0:01:51]} Rac8 {[%emt 0:02:01]} 22. Bxa5 {[%emt 0:02:02]} Bxa5 {[%emt 0:00:05]} 23. Rxb7 {[%emt 0:00:23]} Bxc2 {[%emt 0:02:35]} 24. Rxa7 {[%emt 0:05:14]} Rcd8 {[%emt 0:02:20]} 25. Bxf7+ {[%emt 0:02:33]} Rxf7 {[%emt 0:00:01]} 26. Rxa5 {[%emt 0:00:00]} Rd1+ {[%emt 0:00:35]} 27. Re1 {[%emt 0:00:28]} Rfd7 {[%emt 0:05:55]} 28. Rxc5 {[%emt 0:03:30]} Rxe1+ {[%emt 0:00:02]} 29. Nxe1 {[%emt 0:00:01]} Rd1 {[%emt 0:00:01]} 30. Re5 {[%emt 0:00:08]} Ra1 {[%emt 0:00:23]} 31. a3 {[%emt 0:01:50]} Bb3 {[%emt 0:00:24]} 32. h3 {[%emt 0:01:57]} Rxa3 {[%emt 0:00:17]} 33. Nf3 {[%emt 0:00:50]} Ra1+ {[%emt 0:03:42]} 34. Kh2 {[%emt 0:00:01]} h6 {[%emt 0:01:36]} 35. Rb5 {[%emt 0:00:12]} Bc4 {[%emt 0:00:36]} 36. Rc5 {[%emt 0:01:16]} Be6 {[%emt 0:00:59]} 37. Nd4 {[%emt 0:00:26]} Ra6 {[%emt 0:00:09]} 38. Re5 {[%emt 0:01:31]} Bd7 {[%emt 0:00:11]} 39. Rd5 {[%emt 0:01:30]} Be6 {[%emt 0:00:19]} 40. Rd8+ {[%emt 0:00:40]} Kf7 {[%emt 0:00:26]} 41. Kg3 {[%emt 0:31:30]} Ke7 {[%emt 0:31:13]} 42. Rb8 {[%emt 0:00:11]} Bd5 {[%emt 0:00:29]} 43. Nf5+ {[%emt 0:00:58]} Kf7 {[%emt 0:00:00]} 44. Rc8 {[%emt 0:00:00]} Rg6+ {[%emt 0:00:00]} 45. Kf4 {[%emt 0:00:00]} Bxg2 {[%emt 0:00:00]} 46. Rc7+ {[%emt 0:00:00]} 1/2-1/2

[Event "WYCC U14 Open 2019"]
[Site "Mumbai"]
[Date "2019.10.03"]
[Round "2.9"]
[White "Sun, Jiajun B"]
[Black "Tadic, Stefan"]
[Result "1/2-1/2"]
[ECO "B40"]
[WhiteElo "1977"]
[BlackElo "2295"]
[Annotator "NA"]
[PlyCount "147"]
[EventDate "2019.10.02"]
[EventType "swiss"]
[EventCountry "IND"]
[SourceTitle "playchess.com"]
[Source "ChessBase"]
[SourceQuality "1"]
[TimeControl "40/5400+30:1800+30"]

1. e4 c5 2. Nf3 e6 3. d4 cxd4 4. Nxd4 Nf6 5. Bd3 Nc6 6. Be3 d5 7. exd5 Nxd5 8. Nxc6 bxc6 9. Qd2 Qf6 10. c3 Qe5 11. O-O Nxe3 12. Qxe3 Qxe3 13. fxe3 Bc5 14. Kf2 Ke7 15. Nd2 Rd8 16. Ke2 a5 17. Nf3 f6 18. Nd4 Rd6 19. Rad1 g6 20. Nb3 Bb6 21. Bc4 Rxd1 22. Rxd1 e5 23. h3 a4 24. Nd2 f5 25. e4 f4 26. Nf3 Bc7 27. Ng5 h6 28. Nf7 h5 29. Ng5 Kf6 30. Nh7+ Ke7 31. Ng5 Bd7 32. Rd2 Rh8 33. Nf7 Rf8 34. Ng5 Bc8 35. b4 Rh8 36. Nf7 Rh7 37. Ng5 Rg7 38. b5 Kf6 39. h4 Bg4+ 40. Kf1 Rd7 41. Rxd7 Bxd7 42. bxc6 Bxc6 43. Ke2 Bb6 44. Ke1 Bc5 45. Ke2 Ba7 46. Ke1 Bb6 47. Ke2 Bc5 48. Ke1 Be7 49. Ke2 Kg7 50. Kf3 Bxg5 51. hxg5 Kf8 52. a3 Ke7 53. Bd5 Be8 54. Ke2 Kd6 55. Kf3 Kc5 56. Bg8 Kd6 57. Bd5 Ke7 58. Kf2 Bd7 59. Kf3 Bg4+ 60. Kf2 h4 61. Bc6 Bd7 62. Bd5 h3 63. gxh3 Bxh3 64. Kf3 Bd7 65. Bc4 Be6 66. Bb5 Bd7 67. Bc4 Be6 68. Bb5 Bb3 69. Bc6 Bd1+ 70. Kf2 Bc2 71. Kf3 Bb3 72. Ke2 Bc2 73. Kf3 Bd1+ 74. Kf2 1/2-1/2